bitfinex/quotes_SOLUSD_20241001
["timestamp","ask_amount","ask_price","bid_price","bid_amount"]
[1727801999328,6.7205,148.8,148.75,6.7223]
[1727801999627,6.7205,148.8,148.75,8.06663272]
[1727801999808,6.6518,148.83,148.73,23.776884]
[1727802000014,6.6518,148.83,148.75,16.806]
[1727802000632,6.6518,148.83,148.64,7.00369749]
[1727802000633,20.21,148.82,148.64,7.00369749]
[1727802000840,6.7244,148.72,148.67,6.7262]
[1727802001008,43.776884,148.81,148.68,16.814]
[1727802001356,6.7239,148.73,148.68,23.5396]
[1727802001623,6.5461,148.72,148.65,16.8174]
[1727802001830,6.7255,148.69,148.65,16.8174]
[1727802002034,6.5461,148.72,148.64,7.00369749]
[1727802002227,6.7249,148.7,148.65,6.727]
[1727802002606,6.5461,148.72,148.65,16.8171]
[1727802002835,13.2701,148.72,148.67,6.7258]
[1727802003441,6.5461,148.72,148.65,16.8171]
[1727802003615,6.5461,148.72,148.64,7.00369749]
[1727802004115,6.7267,148.67,148.64,7.00369749]
[1727802004325,6.7272,148.65,148.64,7.00369749]
[1727802004541,6.7284,148.63,148.58,6.7299]
[1727802004832,20.0,148.66,148.56,16.828]
[1727802005045,6.7289,148.62,148.56,16.828]
[1727802005335,6.7272,148.65,148.6,6.7293]
[1727802005516,6.7283,148.63,148.58,6.7299]
[1727802005712,6.7276,148.64,148.58,6.7299]
[1727802005919,20.0,148.71,148.53,33.6619]
[1727802006121,16.8136,148.69,148.53,33.6619]
[1727802006320,6.7281,148.63,148.57,6.7304]
[1727802006532,23.3563,148.72,148.58,1.34585986]
[1727802006739,6.7258,148.69,148.63,6.728]
[1727802006912,6.7264,148.67,148.61,23.776884]
[1727802007235,23.3563,148.72,148.62,6.7285]
[1727802007433,6.7258,148.68,148.63,6.7279]
[1727802007631,6.7254,148.69,148.63,23.5481]
[1727802008065,6.7268,148.66,148.6,23.5524]
[1727802008226,23.3563,148.72,148.62,16.8204]
[1727802008422,23.3563,148.72,148.62,23.5485]
[1727802008423,6.7262,148.68,148.62,23.5485]
[1727802008623,23.3563,148.72,148.62,23.5485]
[1727802008834,6.7266,148.67,148.62,23.5485]
[1727802009017,6.7267,148.66,148.58,23.776884]
[1727802009219,23.3563,148.72,148.57,6.7307]
[1727802009220,6.7285,148.63,148.57,6.7307]
[1727802009436,6.7285,148.63,148.56,16.8278]
[1727802009625,6.7285,148.63,148.58,6.7303]
[1727802010035,57.400284,148.71,148.56,16.8278]
[1727802010036,20.0,148.66,148.56,16.8278]
[1727802010248,6.7298,148.6,148.55,6.7316]
[1727802010737,16.4627,148.63,148.56,1.34618813]
[1727802010918,6.7272,148.65,148.6,6.7294]
[1727802011124,43.776884,148.69,148.52,0.846113]
[1727802011332,6.7299,148.6,148.55,6.7313]
[1727802011717,6.7299,148.59,148.54,6.7321]
[1727802012038,12.8957,148.61,148.56,6.7311]
[1727802012231,6.7295,148.6,148.55,6.7316]
[1727802012426,6.7295,148.6,148.53,16.8312]
[1727802012427,6.7304,148.58,148.53,23.5634]
[1727802012636,6.1666,148.61,148.52,0.846113]
[1727802012815,6.1666,148.61,148.54,6.732]
[1727802013016,6.7308,148.57,148.52,24.411113]
[1727802013221,6.7308,148.57,148.52,24.411213]
[1727802013443,6.7318,148.55,148.52,0.846113]
[1727802013737,15.6251,148.59,148.52,0.846113]
[1727802013946,6.7321,148.55,148.52,0.846113]
[1727802014234,16.8271,148.57,148.52,0.846113]
[1727802014646,6.7318,148.55,148.52,0.846113]
[1727802014825,20.0,148.56,148.52,0.846113]
[1727802014826,6.7326,148.53,148.52,0.846113]
[1727802015020,26.7326,148.53,148.52,0.846113]
[1727802015429,6.7326,148.53,148.52,0.846113]
[1727802015827,26.7326,148.53,148.52,0.846113]
[1727802016128,26.2,148.53,148.41,16.844]
[1727802016352,20.0,148.52,148.43,6.7371]
[1727802016732,23.0323,148.53,148.45,6.7362]
[1727802016927,6.7345,148.49,148.44,6.7366]
[1727802017145,6.2,148.53,148.48,6.7348]
[1727802017323,12.933,148.53,148.42,33.6873]
[1727802017655,6.2,148.53,148.42,33.6873]
[1727802017829,6.2,148.53,148.45,16.8403]
[1727802018137,6.7331,148.52,148.47,6.7351]
[1727802018344,6.2,148.53,148.45,16.8403]
[1727802018645,6.2,148.53,148.48,6.7348]
[1727802019041,12.9327,148.53,148.48,6.7348]
[1727802019241,6.2,148.53,148.47,16.8376]
[1727802019544,6.7335,148.51,148.46,6.7357]
[1727802019749,6.734,148.5,148.45,6.7362]
[1727802020047,6.7344,148.49,148.44,23.5779]
[1727802020244,6.7344,148.49,148.44,16.8413]
[1727802020442,6.7313,148.56,148.51,6.7334]
[1727802020829,6.7308,148.57,148.52,6.7329]
[1727802021026,6.0052,148.58,148.51,6.7335]
[1727802021027,6.7312,148.56,148.51,6.7335]
[1727802021243,6.0052,148.58,148.52,16.832]
[1727802021553,6.0052,148.58,148.42,33.6859]
[1727802021554,6.2015,148.63,148.54,16.8295]
[1727802021733,6.2015,148.63,148.46,39.8867]
[1727802021734,6.7304,148.58,148.52,6.7326]
[1727802022054,6.7308,148.57,148.52,6.733]
[1727802022352,6.7308,148.57,148.46,39.8867]
[1727802022353,6.7295,148.6,148.55,6.7317]
[1727802022538,6.2015,148.63,148.46,39.8867]
[1727802022727,6.7316,148.56,148.51,6.7331]
[1727802022924,6.7317,148.55,148.5,23.5686]
[1727802023158,20.0,148.59,148.5,16.8347]
[1727802023337,20.0,148.59,148.46,33.6781]
[1727802023338,6.7326,148.53,148.48,6.7348]
[1727802023538,6.7335,148.51,148.47,16.8381]
[1727802023853,20.0,148.56,148.48,6.7348]
[1727802024025,20.0,148.56,148.47,23.5734]
[1727802024228,20.0,148.56,148.47,16.8381]
[1727802024431,6.7326,148.54,148.49,6.7343]
[1727802024629,20.21,148.61,148.47,16.8381]
[1727802024850,16.8239,148.6,148.47,16.8381]
[1727802025049,6.7336,148.51,148.46,6.7358]
[1727802025228,20.0,148.58,148.47,1.3469514]
[1727802025431,6.7321,148.55,148.5,6.7339]
[1727802025747,6.7318,148.55,148.5,6.7338]
[1727802025929,20.0,148.58,148.48,16.8361]
[1727802026126,16.8251,148.59,148.45,16.8406]
[1727802026127,20.0,148.56,148.45,16.8406]
[1727802026942,16.83,148.55,148.45,16.8406]
[1727802027259,20.0,148.56,148.42,33.6872]
[1727802027429,6.7318,148.55,148.5,6.7339]
[1727802027628,6.7309,148.57,148.52,6.733]
[1727802027839,16.8222,148.62,148.5,1.3465961]
[1727802028033,16.8222,148.62,148.53,6.7324]
[1727802028237,6.7295,148.6,148.55,6.7316]
[1727802028439,6.7291,148.61,148.56,6.7312]
[1727802028633,6.7307,148.58,148.53,16.8306]
[1727802028852,6.7294,148.61,148.53,16.8306]
[1727802029040,23.0225,148.63,148.53,16.8306]
[1727802029041,6.7298,148.6,148.53,16.8306]
[1727802029236,23.0225,148.63,148.53,16.8306]
[1727802029462,23.0225,148.63,148.54,1.34634967]
[1727802029747,6.7302,148.59,148.54,6.732]
[1727802029952,23.0225,148.63,148.53,16.8306]
[1727802030154,20.0,148.62,148.53,23.5631]
[1727802030331,6.7317,148.55,148.51,6.7335]
[1727802030534,20.0,148.62,148.5,1.34653441]
[1727802030764,6.7304,148.58,148.53,6.7323]
[1727802031057,20.0,148.62,148.54,1.34645537]
[1727802031350,6.729,148.61,148.56,6.7309]
[1727802031532,6.2015,148.63,148.55,16.8284]
[1727802031731,6.729,148.61,148.55,16.8284]
[1727802031953,6.729,148.61,148.57,6.7307]
[1727802032348,6.729,148.61,148.55,23.5596]
[1727802032741,6.7286,148.62,148.57,6.7308]
[1727802033066,6.7294,148.6,148.56,6.7311]
[1727802033353,20.0,148.62,148.57,6.7306]
[1727802033561,6.7291,148.61,148.56,6.7311]
[1727802034141,6.7286,148.62,148.57,6.7307]
[1727802034344,21.8391,148.64,148.6,6.7291]
[1727802034653,6.7286,148.62,148.57,6.7307]
[1727802034840,6.7295,148.6,148.55,6.7316]
[1727802035046,15.1114,148.64,148.57,6.7305]
[1727802035256,15.1114,148.64,148.58,6.7303]
[1727802035563,15.1114,148.64,148.5,33.6688]
[1727802035564,6.7277,148.64,148.6,6.7294]
[1727802035744,6.7277,148.64,148.59,6.7298]
[1727802036076,6.7281,148.63,148.58,6.7302]
[1727802036365,23.3261,148.67,148.58,6.7302]
[1727802036584,23.3261,148.67,148.53,6.0362]
[1727802036585,6.7273,148.65,148.61,6.7289]
[1727802036857,6.5098,148.67,148.61,6.7289]
[1727802037057,6.7272,148.65,148.61,6.7289]
[1727802037264,6.5098,148.67,148.6,6.7293]
[1727802037559,6.5098,148.67,148.54,33.6607]
[1727802037764,6.5098,148.67,148.59,6.7295]
[1727802037946,20.0,148.66,148.56,6.7312]
[1727802038148,6.7291,148.61,148.55,16.8289]
[1727802038361,20.0,148.64,148.55,16.8289]
[1727802038657,16.8184,148.65,148.56,6.7312]
[1727802038964,20.0,148.66,148.48,29.77384982]
[1727802038965,16.8208,148.63,148.48,29.77384982]
[1727802039162,6.7305,148.58,148.52,16.8323]
[1727802039358,6.5098,148.67,148.48,22.7565]
[1727802039359,16.8173,148.66,148.51,33.6656]
[1727802039674,6.5098,148.67,148.6,16.8231]
[1727802039855,6.2518,148.71,148.61,1.34556254]
[1727802040053,6.2518,148.71,148.62,16.8209]
[1727802040054,6.7266,148.67,148.62,16.8209]
[1727802040254,6.7266,148.67,148.62,23.5493]
[1727802040450,6.7267,148.66,148.62,23.5493]
[1727802040645,6.2518,148.71,148.59,16.824]
[1727802040975,6.2518,148.71,148.56,16.8276]
[1727802040976,6.7286,148.62,148.56,16.8276]
[1727802041276,6.7282,148.63,148.58,6.7303]
[1727802041451,6.7282,148.63,148.56,16.8276]
[1727802041452,20.0,148.64,148.56,23.5585]
[1727802041660,6.7304,148.58,148.53,16.8309]
[1727802042061,6.7299,148.59,148.54,6.7318]
[1727802042448,6.7305,148.58,148.53,23.5634]
[1727802042651,20.0,148.64,148.59,6.7297]
[1727802042871,6.7282,148.63,148.58,16.8254]
[1727802043053,6.7277,148.64,148.59,6.7295]
[1727802043253,67.0605,148.69,148.58,16.8254]
[1727802043254,33.4335,148.69,148.58,16.8254]
[1727802043573,6.7268,148.66,148.62,6.7282]
[1727802043749,6.2518,148.71,148.62,6.7282]
[1727802043750,6.7259,148.68,148.63,6.728]
[1727802044075,6.7263,148.67,148.63,6.728]
[1727802044369,6.7262,148.68,148.64,6.7276]
[1727802044746,6.7254,148.69,148.64,6.7276]
[1727802044953,6.7249,148.71,148.65,8.0721269]
[1727802045153,20.0,148.72,148.65,6.7268]
[1727802045358,6.7252,148.7,148.65,6.7268]
[1727802045753,6.7255,148.69,148.64,23.5457]
[1727802046153,6.7255,148.69,148.65,6.7272]
[1727802046677,6.725,148.7,148.65,6.7268]
[1727802046863,6.7252,148.7,148.66,16.816]
[1727802047070,6.7263,148.67,148.63,16.8197]
[1727802047257,6.7268,148.66,148.61,6.7286]
[1727802047577,46.99616883,148.76,148.6,16.8233]
[1727802047775,6.7272,148.65,148.6,23.5527]
[1727802047948,20.0,148.67,148.53,21.5432]
[1727802048271,20.0,148.67,148.58,16.8253]
[1727802048573,6.132,148.66,148.55,16.8288]
[1727802048772,6.7289,148.62,148.57,6.7306]
[1727802048950,16.8188,148.65,148.55,16.8288]
[1727802049149,6.729,148.61,148.57,6.7307]
[1727802049375,16.8188,148.65,148.55,16.8288]
[1727802049376,20.0,148.64,148.55,16.8288]
[1727802049569,6.7298,148.6,148.55,23.5604]
[1727802049877,26.728,148.64,148.59,6.7296]
[1727802050173,20.0,148.65,148.59,6.7296]
[1727802050469,6.7272,148.65,148.6,6.7293]
[1727802050674,6.7276,148.64,148.6,6.7293]
[1727802050862,6.7273,148.65,148.6,6.7293]
[1727802051062,6.7273,148.65,148.59,16.8237]
[1727802051063,6.7267,148.66,148.61,6.7289]
[1727802051260,21.8682,148.68,148.63,6.728]
[1727802051463,6.4553,148.7,148.61,16.8217]
[1727802051464,20.0,148.69,148.61,16.8217]
[1727802051663,6.7263,148.67,148.62,6.7282]
[1727802051871,26.7258,148.69,148.63,6.728]
[1727802052073,26.7258,148.69,148.61,16.8217]
[1727802052074,20.0,148.69,148.61,16.8217]
[1727802052256,6.7276,148.65,148.61,16.8217]
[1727802052778,6.729,148.61,148.53,6.2582]
[1727802053094,6.729,148.61,148.56,6.7309]
[1727802053273,6.7301,148.59,148.55,16.8288]
[1727802053573,16.8187,148.65,148.55,16.8288]
[1727802053750,6.7311,148.57,148.53,6.7325]
[1727802053955,6.73,148.59,148.54,6.7321]
[1727802054156,6.73,148.59,148.55,6.7317]
[1727802054455,22.6233,148.64,148.59,6.7299]
[1727802054658,6.7275,148.65,148.6,6.729]
[1727802054859,16.1966,148.69,148.55,33.6584]
[1727802054860,20.0,148.67,148.55,33.6584]
[1727802055176,6.7291,148.61,148.56,23.5588]
[1727802055675,20.0,148.65,148.56,23.5588]
[1727802055860,20.0,148.65,148.49,6.0365]
[1727802055861,6.7304,148.58,148.53,23.5633]
[1727802056068,6.731,148.57,148.53,16.831]
[1727802056379,36.8184,148.65,148.56,6.7311]
[1727802056568,36.8184,148.65,148.55,16.8287]
[1727802056964,6.7293,148.61,148.56,6.7312]
[1727802057157,6.7286,148.62,148.55,16.8287]
[1727802057358,6.7286,148.62,148.57,6.7307]
[1727802057758,6.7286,148.62,148.55,16.8287]
[1727802057978,6.7286,148.62,148.58,6.7303]
[1727802058177,6.7282,148.63,148.58,6.7303]
[1727802058570,6.7286,148.62,148.58,6.7303]
[1727802058877,16.8184,148.65,148.51,33.6676]
[1727802059063,6.7289,148.62,148.57,6.7307]
[1727802059580,33.6306,148.68,148.51,33.6676]
[1727802059780,6.728,148.64,148.59,6.7298]
[1727802059996,16.8173,148.66,148.58,16.8254]
[1727802060160,6.7282,148.63,148.58,23.5554]
[1727802060361,6.7286,148.62,148.58,23.5554]
[1727802060564,16.8173,148.66,148.58,23.5554]
[1727802060565,20.0,148.65,148.58,16.8254]
[1727802060761,16.8173,148.66,148.58,16.8254]
[1727802061054,6.729,148.61,148.57,6.7307]
[1727802061271,6.7285,148.62,148.55,16.8287]
[1727802061456,6.7285,148.62,148.57,6.7307]
[1727802061766,6.7277,148.64,148.56,1.34593068]
[1727802061961,6.7284,148.63,148.58,6.7302]
[1727802062267,6.7272,148.65,148.61,6.7289]
[1727802062456,6.7272,148.65,148.59,16.8243]
[1727802062779,16.1966,148.69,148.56,16.8275]
[1727802063086,6.7302,148.59,148.55,6.7316]
[1727802063458,16.822,148.62,148.53,23.5634]
[1727802063661,6.7304,148.58,148.53,23.5634]
[1727802063961,20.0,148.61,148.5,16.8343]
[1727802064171,6.7328,148.53,148.49,6.7344]
[1727802064571,16.827,148.58,148.49,16.8352]
[1727802064784,6.7317,148.55,148.49,16.8352]
[1727802064971,6.7317,148.55,148.5,6.7339]
[1727802065377,16.827,148.58,148.5,6.7339]
[1727802065588,6.7322,148.54,148.5,6.7339]
[1727802065762,6.7322,148.54,148.49,23.5694]
[1727802066071,6.7323,148.54,148.49,16.8352]
[1727802066268,6.7326,148.53,148.49,16.8352]
[1727802066462,6.7322,148.54,148.49,16.8352]
[1727802066665,6.7317,148.55,148.5,6.7339]
[1727802067881,6.7322,148.54,148.5,6.7339]
[1727802068107,6.7317,148.55,148.5,6.7339]
[1727802068295,6.7329,148.53,148.49,16.8352]
[1727802068467,6.7329,148.53,148.48,6.7348]
[1727802068468,6.7326,148.53,148.48,6.7346]
[1727802068989,6.7326,148.53,148.46,16.8392]
[1727802069293,20.0,148.57,148.48,6.7349]
[1727802069486,6.7326,148.54,148.49,6.7343]
[1727802069869,6.7335,148.51,148.47,6.7353]
[1727802070177,6.7335,148.51,148.45,16.8403]
[1727802070178,6.7335,148.51,148.46,6.7357]
[1727802070475,15.4292,148.6,148.42,16.8436]
[1727802070476,6.3816,148.53,148.42,16.8436]
[1727802070800,6.7354,148.47,148.42,16.8436]
[1727802071013,6.7354,148.47,148.43,6.7371]
[1727802071166,6.7358,148.46,148.42,23.5811]
[1727802071364,20.0,148.49,148.39,16.8468]
[1727802071584,6.7376,148.42,148.39,16.8468]
[1727802071891,6.7376,148.42,148.38,6.7393]
[1727802072094,6.7385,148.4,148.37,0.846113]
[1727802072275,6.739,148.39,148.37,0.846113]
[1727802072478,6.7394,148.38,148.37,0.846113]
[1727802072970,6.739,148.39,148.37,0.846113]
[1727802073289,6.7394,148.38,148.37,0.846113]
[1727802074286,26.7394,148.38,148.37,0.846113]
[1727802074500,20.0,148.37,148.25,16.8629]
[1727802074787,20.0,148.37,148.24,21.3497]
[1727802075188,6.7406,148.36,148.3,6.7428]
[1727802075383,6.7404,148.36,148.31,6.7425]
[1727802075629,20.0,148.4,148.29,16.8577]
[1727802075767,16.8485,148.39,148.24,21.3497]
[1727802075973,6.7421,148.33,148.26,16.862]
[1727802076271,6.7421,148.33,148.28,6.7439]
[1727802076467,6.7412,148.34,148.29,6.7435]
[1727802076671,6.7407,148.36,148.3,6.7426]
[1727802076887,6.7408,148.35,148.28,16.8588]
[1727802077775,6.7408,148.35,148.3,6.7426]
[1727802077972,6.7403,148.37,148.26,33.7234]
[1727802078191,6.7403,148.37,148.3,16.8568]
[1727802078379,15.3713,148.41,148.3,16.8568]
[1727802078380,20.0,148.4,148.3,16.8568]
[1727802078580,36.8473,148.4,148.3,23.5995]
[1727802078974,23.776884,148.39,148.3,16.8568]
[1727802079177,23.776884,148.39,148.28,6.7436]
[1727802079178,36.8497,148.38,148.28,6.7436]
[1727802079388,6.7425,148.32,148.27,23.6051]
[1727802080404,6.1134,148.34,148.27,16.8607]
[1727802080714,6.7417,148.33,148.28,6.7439]
[1727802081006,12.8547,148.34,148.29,6.7433]
[1727802081215,6.1134,148.34,148.3,6.7429]
[1727802081507,6.1134,148.34,148.31,6.7425]
[1727802081689,6.1134,148.34,148.26,16.8619]
[1727802081892,6.7425,148.32,148.27,6.744]
[1727802082099,20.0,148.33,148.26,16.8619]
[1727802083154,26.7418,148.33,148.29,16.8587]
[1727802083285,6.7422,148.32,148.27,6.7444]
[1727802083794,26.7417,148.33,148.28,6.7439]
[1727802084309,6.7417,148.33,148.28,6.7439]
[1727802084709,6.7422,148.32,148.27,6.7441]
[1727802085209,6.7418,148.33,148.26,16.8619]
[1727802085510,6.7418,148.33,148.28,6.7438]
[1727802086502,6.7426,148.32,148.26,16.8619]
[1727802086810,6.7426,148.32,148.27,6.744]
[1727802087308,6.7425,148.32,148.27,6.744]
[1727802087507,6.1134,148.34,148.27,1.34883075]
[1727802087811,6.1134,148.34,148.28,16.8594]
[1727802088114,6.742,148.33,148.28,23.6032]
[1727802088415,6.1134,148.34,148.28,16.8594]
[1727802088416,6.7423,148.32,148.28,16.8594]
[1727802088589,6.1134,148.34,148.28,16.8594]
[1727802088791,6.7418,148.33,148.28,23.6032]
[1727802089307,6.7426,148.31,148.25,16.8627]
[1727802089512,6.1134,148.34,148.28,6.7436]
[1727802089803,6.7425,148.32,148.28,6.7439]
[1727802090015,6.7425,148.32,148.27,23.6047]
[1727802090511,6.7492,148.17,148.07,1.4242153]
[1727802090700,20.0,148.25,148.07,1.4242153]
[1727802090701,20.0,148.2,148.07,1.4242153]
[1727802090891,20.0,148.22,148.07,1.4242153]
[1727802091089,6.7486,148.18,148.07,1.4242153]
[1727802091395,16.8694,148.2,148.11,23.63]
[1727802091696,6.7486,148.18,148.11,16.8784]
[1727802091895,6.7486,148.18,148.07,1.4242153]
[1727802091896,6.7481,148.19,148.14,23.6261]
[1727802092095,20.0,148.22,148.15,6.7497]
[1727802092307,20.0,148.25,148.11,46.53233522]
[1727802093311,6.7463,148.23,148.11,46.53233522]
[1727802093514,6.7463,148.23,148.09,23.776884]
[1727802093693,6.7463,148.23,148.11,46.53233522]
[1727802093894,6.7467,148.22,148.17,6.7489]
[1727802094321,20.0,148.25,148.16,16.8735]
[1727802094492,37.0667,148.31,148.19,16.8699]
[1727802094687,37.0667,148.31,148.24,6.7456]
[1727802094688,6.7435,148.29,148.24,6.7456]
[1727802094921,12.839,148.3,148.24,6.7456]
[1727802095096,16.8487,148.38,148.26,6.7449]
[1727802095413,6.0959,148.35,148.26,6.7449]
[1727802095589,6.7422,148.32,148.26,6.7449]
[1727802095998,6.7423,148.32,148.27,6.7444]
[1727802096188,6.7423,148.32,148.25,16.8624]
[1727802096189,6.7432,148.3,148.25,23.6077]
[1727802096388,6.7417,148.33,148.27,6.744]
[1727802096613,6.0959,148.35,148.27,6.744]
[1727802096614,6.7424,148.32,148.27,6.744]
[1727802096797,6.7417,148.33,148.28,6.7439]
[1727802097002,6.7417,148.33,148.26,23.776884]
[1727802097203,6.0959,148.35,148.25,16.8624]
[1727802097398,6.7418,148.33,148.27,6.7443]
[1727802097614,6.0959,148.35,148.27,16.8602]
[1727802097812,6.7418,148.33,148.28,6.7435]
[1727802098021,6.0959,148.35,148.27,16.8602]
[1727802098316,6.7417,148.33,148.28,6.7436]
[1727802098622,6.7413,148.34,148.29,6.7434]
[1727802099318,6.7413,148.34,148.28,6.7439]
[1727802099510,6.7416,148.34,148.2,67.4745]
[1727802099720,6.7416,148.34,148.29,6.7434]
[1727802100221,6.0959,148.35,148.32,6.7417]
[1727802100416,6.0959,148.35,148.31,16.8557]
[1727802100417,12.8367,148.35,148.31,16.8557]
[1727802100727,6.0959,148.35,148.28,16.8597]
[1727802101019,20.0,148.34,148.25,23.6081]
[1727802101223,20.0,148.34,148.25,16.863]
[1727802101424,6.7431,148.3,148.25,23.6083]
[1727802101594,23.776884,148.33,148.22,16.8664]
[1727802101794,20.0,148.29,148.25,6.7453]
[1727802102007,20.0,148.29,148.24,16.8637]
[1727802102217,26.7439,148.29,148.24,16.8637]
[1727802102425,26.7435,148.29,148.24,23.6091]
[1727802102624,20.0,148.29,148.25,6.7452]
[1727802102922,6.7436,148.29,148.24,12.65515622]
[1727802103222,6.7445,148.27,148.2,33.7368]
[1727802103402,20.0,148.32,148.2,33.7368]
[1727802103606,23.776884,148.31,148.2,33.7368]
[1727802103806,6.7445,148.27,148.22,6.7465]
[1727802104111,6.7449,148.26,148.21,6.7467]
[1727802104303,36.8596,148.29,148.2,16.8689]
[1727802104633,6.7444,148.27,148.2,16.8689]
[1727802104924,20.0,148.31,148.2,16.8689]
[1727802105102,6.7455,148.25,148.2,23.6162]
[1727802105309,6.7444,148.28,148.23,6.7462]
[1727802105529,6.7454,148.25,148.21,6.7471]
[1727802105705,6.745,148.26,148.22,6.7466]
[1727802105908,6.7445,148.27,148.22,6.7466]
[1727802106413,6.0959,148.35,148.16,33.7462]
[1727802106414,6.7462,148.24,148.19,6.748]
[1727802106609,6.7444,148.27,148.21,16.8671]
[1727802106813,6.7444,148.27,148.22,6.7466]
[1727802107015,20.0,148.31,148.21,16.8671]
[1727802107016,6.7452,148.26,148.21,23.6141]
[1727802107517,6.745,148.26,148.21,23.6139]
[1727802107717,6.7452,148.26,148.21,23.6139]
[1727802108027,20.0,148.29,148.19,6.7479]
[1727802108028,6.7466,148.23,148.19,6.7479]
[1727802108210,6.7466,148.23,148.18,6.7485]
[1727802108413,6.7461,148.24,148.2,6.7475]
[1727802108620,6.7461,148.24,148.17,16.872]
[1727802108932,6.7464,148.23,148.19,6.7479]
[1727802109119,6.423,148.26,148.2,6.7474]
[1727802109321,20.0,148.25,148.19,16.8696]
[1727802109514,6.7459,148.24,148.2,6.7475]
[1727802109711,20.0,148.25,148.19,16.8696]
[1727802109929,6.423,148.26,148.21,6.7468]
[1727802110427,6.423,148.26,148.2,6.7474]
[1727802110639,6.746,148.24,148.19,16.8696]
[1727802110810,6.423,148.26,148.21,6.7471]
[1727802111011,6.7458,148.24,148.2,6.7474]
[1727802111536,6.7454,148.25,148.21,6.747]
[1727802112215,13.1679,148.26,148.21,6.747]
[1727802112422,53.9218,148.32,148.26,6.7444]
[1727802112423,6.7427,148.31,148.26,6.7444]
[1727802112935,16.5745,148.32,148.27,6.7444]
[1727802113229,16.5745,148.32,148.23,16.8652]
[1727802113430,6.7435,148.29,148.25,6.745]
[1727802113612,6.7436,148.29,148.25,6.745]
[1727802114016,6.744,148.28,148.24,6.7458]
[1727802114217,6.7445,148.27,148.23,23.6112]
[1727802114414,16.5745,148.32,148.2,16.8688]
[1727802114415,36.7845,148.32,148.2,16.8688]
[1727802114616,50.2857,148.32,148.16,6.3401]
[1727802114821,6.7445,148.27,148.23,6.7459]
[1727802115325,6.7456,148.25,148.2,6.7473]
[1727802115537,20.0,148.28,148.19,23.618]
[1727802115724,20.0,148.26,148.14,15.1281]
[1727802115908,6.6376,148.25,148.14,15.1281]
[1727802116109,6.6376,148.25,148.14,6.7503]
[1727802116110,6.7481,148.19,148.14,6.7503]
[1727802116331,6.7476,148.2,148.15,6.7495]
[1727802116532,23.5015,148.25,148.13,16.8769]
[1727802116709,6.7477,148.2,148.16,6.7494]
[1727802116917,23.5015,148.25,148.15,16.8741]
[1727802117120,6.7477,148.2,148.15,16.8741]
[1727802117332,43.776884,148.24,148.16,6.7493]
[1727802117517,6.7472,148.21,148.16,6.7493]
[1727802117928,6.7468,148.22,148.17,6.7486]
[1727802118130,6.7468,148.22,148.16,23.776884]
[1727802118509,20.0,148.24,148.15,16.8741]
[1727802118712,6.7477,148.2,148.16,6.7493]
[1727802118933,6.7477,148.2,148.15,23.6239]
[1727802119132,6.7477,148.2,148.16,6.7494]
[1727802119324,23.5015,148.25,148.17,6.7488]
[1727802119517,23.776884,148.24,148.15,16.8741]
[1727802119709,20.0,148.24,148.13,33.7537]
[1727802119915,6.7462,148.23,148.18,6.7483]
[1727802120115,6.7468,148.22,148.17,23.6207]